Workbook

Sheet Sheet1
A5: م | B5: اسم الطالب | D5: الدرجة | E5: الترتيب | G5: النسبة | H5: حالة الطالب | I5: التقدير
A6: 1 | D6: 4 | E6: =RANK(D6,D6:D30) -> 24 | G6: =D6/B33 -> 0.2 | H6: =IF(G6>=50%,"ناجح","راسب") -> راسب | I6: مقبول
A7: 2 | D7: 14 | E7: =RANK(D7,D6:D30) -> 13 | G7: =D7/B33 -> 0.7 | H7: =IF(G7>=50%,"ناجح","راسب") -> ناجح | I7: امتياز
A8: 3 | D8: 17 | E8: =RANK(D8,D6:D30) -> 6 | G8: =D8/B33 -> 0.85 | H8: =IF(G8>=50%,"ناجح","راسب") -> ناجح | I8: امتياز
A9: 4 | D9: 18 | E9: =RANK(D9,D6:D30) -> 3 | G9: =D9/B33 -> 0.9 | H9: ناجح | I9: امتياز
A10: 5 | D10: 17 | E10: =RANK(D10,D6:D30) -> 6 | G10: =D10/B33 -> 0.85 | H10: ناجح | I10: امتياز
A11: 6 | D11: 15 | E11: =RANK(D11,D6:D30) -> 11 | G11: =D11/B33 -> 0.75 | H11: ناجح | I11: امتياز
A12: 7 | D12: 3 | E12: =RANK(D12,D6:D30) -> 25 | G12: =D12/B33 -> 0.15 | H12: راسب | I12: ضعيف
A13: 8 | D13: 11 | E13: =RANK(D13,D6:D30) -> 20 | G13: =D13/B33 -> 0.55 | H13: ناجح | I13: جيد جد
A14: 9 | D14: 10 | E14: =RANK(D14,D6:D30) -> 22 | G14: =D14/B33 -> 0.5 | H14: ناجح | I14: جيد جد
A15: 10 | D15: 14 | E15: =RANK(D15,D6:D30) -> 13 | G15: =D15/B33 -> 0.7 | H15: ناجح | I15: امتياز
A16: 11 | D16: 11 | E16: =RANK(D16,D6:D30) -> 20 | G16: =D16/B33 -> 0.55 | H16: ناجح | I16: جيد جد
A17: 12 | D17: 10 | E17: =RANK(D17,D6:D30) -> 22 | G17: =D17/B33 -> 0.5 | H17: ناجح | I17: جيد جد
A18: 13 | D18: 12 | E18: =RANK(D18,D6:D30) -> 18 | G18: =D18/B33 -> 0.6 | H18: ناجح | I18: جيد جد
A19: 14 | D19: 18 | E19: =RANK(D19,D6:D30) -> 3 | G19: =D19/B33 -> 0.9 | H19: ناجح | I19: امتياز
A20: 15 | D20: 19 | E20: =RANK(D20,D6:D30) -> 2 | G20: =D20/B33 -> 0.95 | H20: ناجح | I20: امتياز
A21: 16 | D21: 20 | E21: =RANK(D21,D6:D30) -> 1 | G21: =D20/B33 -> 0.95 | H21: ناجح | I21: امتياز
A22: 17 | D22: 13 | E22: =RANK(D22,D6:D30) -> 17 | G22: =D22/B33 -> 0.65 | H22: ناجح | I22: جيد جد
A23: 18 | D23: 12 | E23: =RANK(D23,D6:D30) -> 18 | G23: =D23/B33 -> 0.6 | H23: ناجح | I23: جيد جد
A24: 19 | D24: 14 | E24: =RANK(D24,D6:D30) -> 13 | G24: =D24/B33 -> 0.7 | H24: ناجح | I24: امتياز
A25: 20 | D25: 15 | E25: =RANK(D25,D6:D30) -> 11 | G25: =D25/B33 -> 0.75 | H25: ناجح | I25: امتياز
A26: 21 | D26: 16 | E26: =RANK(D26,D6:D30) -> 9 | G26: =D26/B33 -> 0.8 | H26: ناجح | I26: امتياز
A27: 22 | D27: 14 | E27: =RANK(D27,D6:D30) -> 13 | G27: =D27/B33 -> 0.7 | H27: ناجح | I27: امتياز
A28: 23 | D28: 17 | E28: =RANK(D28,D6:D30) -> 6 | G28: =D28/B33 -> 0.85 | H28: ناجح | I28: امتياز
A29: 24 | D29: 18 | E29: =RANK(D29,D6:D30) -> 3 | G29: =D29/B33 -> 0.9 | H29: ناجح | I29: امتياز
A30: 25 | D30: 16 | E30: =RANK(D30,D6:D30) -> 9 | G30: =D30/B33 -> 0.8 | H30: ناجح | I30: امتياز
A33: درجة المادة | B33: 20 | D33: عددالطلاب
A34: من 85 - 100% | C34: ممتاز
A35: من 75 - 85% | C35: جيد جدا
A36: من 65 - 75% | C36: جيد
A37: من 50 - 65% | C37: مقبول
A38: أقل من 50% | C38: ضعيف
